fUSD/lending_fUSD_20240709
["ID","MTS","AMOUNT","RATE_DAILY","PERIOD"]
[331584810,1720551040466,-150.0,0.000138,2]
[331584811,1720551040477,-150.0,0.0001381,2]
[331584812,1720551040489,-150.0,0.00013824,2]
[331584813,1720551040500,-150.0,0.0001383,2]
[331584814,1720551040512,-150.0,0.00013844,2]
[331584815,1720551040524,-150.0,0.00013849,2]
[331584816,1720551040535,-150.0,0.00013849,2]
[331584817,1720551040546,-150.0,0.0001385,2]
[331584818,1720551040557,-150.0,0.00013859,2]
[331584819,1720551040569,-150.0,0.00013864,2]
[331584820,1720551040580,-150.0,0.00013872,2]
[331584821,1720551040593,-150.0,0.00013877,2]
[331584822,1720551040604,-150.0,0.00013878,2]
[331584823,1720551040616,-150.0,0.00013893,2]
[331584824,1720551040628,-150.0,0.00013899,2]
[331584825,1720551040641,-150.0,0.00013911,2]
[331584826,1720551040652,-150.0,0.00013911,2]
[331584827,1720551040664,-150.0,0.00013935,2]
[331584828,1720551040677,-150.0,0.00013938,2]
[331584829,1720551040690,-150.0,0.00013943,2]
[331584830,1720551040702,-150.0,0.00013943,2]
[331584831,1720551040713,-150.0,0.00013948,2]
[331584833,1720551040724,-150.0,0.00013953,2]
[331584835,1720551040735,-150.0,0.00013953,2]
[331584837,1720551040746,-150.0,0.00013955,2]
[331584839,1720551040758,-150.0,0.00013958,2]
[331584841,1720551040769,-150.0,0.00013968,2]
[331584843,1720551040780,-150.0,0.00013975,2]
[331584846,1720551040792,-150.0,0.00013975,2]
[331584848,1720551040804,-150.0,0.00013979,2]
[331584849,1720551040816,-150.0,0.00013982,2]
[331584850,1720551040827,-150.0,0.00013989,2]
[331584851,1720551040838,-150.0,0.00013995,2]
[331584852,1720551040850,-7359.27146459,0.00014,2]
[331584855,1720551040887,-150.0,0.00013764,2]
[331584858,1720551040898,-150.0,0.00013876,2]
[331584860,1720551040910,-150.0,0.00013993,2]
[331584861,1720551040922,-2913.1171214,0.00014,2]
[331584862,1720551040936,-881.21664269,0.00014,2]
[331584905,1720551045400,-150.0,0.00013821,2]
[331584906,1720551045410,-150.0,0.00013833,2]
[331584907,1720551045421,-150.0,0.00013835,2]
[331584908,1720551045431,-150.0,0.0001388,2]
[331584909,1720551045441,-150.0,0.00013911,2]
[331584910,1720551045450,-150.0,0.00013955,2]
[331584911,1720551045460,-150.0,0.00013973,2]
[331584912,1720551045470,-150.0,0.00013985,2]
[331584913,1720551045480,-1245.10308018,0.00014,2]
[331584914,1720551045509,-150.0,0.00013777,2]
[331584915,1720551045518,-150.0,0.00013887,2]
[331584916,1720551045527,-150.0,0.00013974,2]
[331584917,1720551045536,-191.92499981,0.00014,2]
[331584918,1720551045547,-1720.39690758,0.00014,2]
[331584919,1720551045558,-107111.52462929,0.00014,2]
[331584920,1720551045593,-150.0,0.00013791,2]
[331584921,1720551045602,-150.0,0.00013821,2]
[331584922,1720551045611,-150.0,0.00013958,2]
[331584923,1720551045621,-150.0,0.00013999,2]
[331584924,1720551045631,-1450.53027605,0.00014,2]
[331584925,1720551045643,-4368.20919247,0.00014,2]
[331584929,1720551046060,-150.0,0.00013728,2]
[331584931,1720551046069,-150.0,0.00013732,2]
[331584934,1720551046078,-33.81686095,0.00013749,2]
[331584961,1720551046739,-116.18313905,0.00013749,2]
[331584963,1720551046749,-150.0,0.00013753,2]
[331584964,1720551046759,-150.0,0.00013753,2]
[331584967,1720551046768,-150.0,0.00013754,2]
[331584969,1720551046778,-150.0,0.00013754,2]
[331584971,1720551046788,-150.0,0.00013756,2]
[331584972,1720551046798,-150.0,0.00013781,2]
[331584974,1720551046807,-118.13686089,0.00013785,2]
[331584975,1720551046819,-31.86313911,0.00013785,2]
[331584976,1720551046828,-150.0,0.00013786,2]
[331584977,1720551046838,-150.0,0.00013787,2]
[331584978,1720551046847,-150.0,0.00013797,2]
[331584979,1720551046857,-150.0,0.00013797,2]
[331584980,1720551046867,-150.0,0.00013801,2]
[331584981,1720551046877,-130.58686089,0.00013843,2]
[331584982,1720551046898,-19.41313911,0.00013843,2]
[331584983,1720551046907,-150.0,0.00013843,2]
[331584984,1720551046917,-150.0,0.00013847,2]
[331584985,1720551046929,-150.0,0.00013852,2]
[331584986,1720551046938,-150.0,0.00013855,2]
[331584987,1720551046948,-150.0,0.00013858,2]
[331584988,1720551046957,-150.0,0.00013865,2]
[331584989,1720551046967,-150.0,0.00013867,2]
[331584990,1720551046976,-150.0,0.00013872,2]
[331584991,1720551046986,-150.0,0.00013878,2]
[331584992,1720551046995,-150.0,0.00013879,2]
[331584993,1720551047005,-150.0,0.00013883,2]
[331584994,1720551047016,-150.0,0.00013891,2]
[331584995,1720551047026,-150.0,0.00013896,2]
[331584996,1720551047036,-150.0,0.00013903,2]
[331584997,1720551047046,-150.0,0.00013906,2]
[331584998,1720551047055,-150.0,0.00013906,2]
[331584999,1720551047065,-150.0,0.0001391,2]
[331585000,1720551047074,-150.0,0.00013915,2]
[331585001,1720551047083,-150.0,0.00013915,2]
[331585002,1720551047092,-150.0,0.00013922,2]
[331585003,1720551047101,-150.0,0.00013926,2]
[331585004,1720551047111,-150.0,0.00013928,2]
[331585005,1720551047120,-150.0,0.0001393,2]
[331585006,1720551047129,-150.0,0.00013938,2]
[331585007,1720551047138,-150.0,0.00013943,2]
[331585008,1720551047148,-150.0,0.0001395,2]
[331585009,1720551047157,-150.0,0.00013962,2]
[331585010,1720551047166,-150.0,0.00013964,2]
[331585011,1720551047179,-150.0,0.00013969,2]
[331585012,1720551047188,-150.0,0.00013973,2]
[331585013,1720551047197,-150.0,0.00013975,2]
[331585014,1720551047207,-150.0,0.00013981,2]
[331585015,1720551047216,-150.0,0.0001399,2]
[331585016,1720551047225,-150.0,0.00013995,2]
[331585017,1720551047234,-28233.88649995,0.00014,2]
[331585018,1720551047246,-339.9825,0.00014,2]
[331585019,1720551047257,-938.09435475,0.00014,2]
[331585020,1720551047268,-54799.35804671,0.00014,2]
[331585021,1720551047279,-557.8211037,0.00014,2]
[331585022,1720551047291,-2412.0,0.00014,2]
[331585023,1720551047305,-10180.87,0.00014,2]
[331585024,1720551047316,-2198.591,0.00014,2]
[331585025,1720551047327,-567.63859501,0.00014,2]
[331585026,1720551047338,-752.79796392,0.00014,2]
[331585027,1720551047349,-919.21862842,0.00014,2]
[331585028,1720551047360,-302.0,0.00014,2]
[331585029,1720551047607,-273.05483461,0.00013574,2]
[331585030,1720551047616,-251.75169673,0.00014,2]
[331585031,1720551047627,-718.1047832,0.00014,2]
[331585032,1720551047638,-371.88291753,0.00014,2]
[331585033,1720551047649,-1324.8,0.00014,2]
[331585034,1720551047660,-2007.07929185,0.00014,2]
[331585035,1720551047673,-1460.0142,0.00014,2]
[331585036,1720551047686,-19063.64978458,0.00014,2]
[331585037,1720551047699,-965.47516744,0.00014,2]
[331585038,1720551047713,-307.44854805,0.00014,2]
[331585039,1720551047728,-8476.00192475,0.00014,2]
[331585040,1720551047739,-304.24276316,0.00014,2]
[331585041,1720551047750,-1494.82037085,0.00014,2]
[331585042,1720551047761,-650.09,0.00014,2]
[331585043,1720551047771,-53190.04953092,0.00014,2]
[331585044,1720551047786,-453.46218221,0.00014,2]
[331585045,1720551047799,-459.92757826,0.00014,2]
[331585046,1720551047811,-3877.46310139,0.00014,2]
[331585047,1720551047823,-310.531547,0.00014,2]
[331585048,1720551047837,-71309.18045243,0.00014,2]
[331585049,1720551047849,-1346.35809449,0.00014,2]
[331585050,1720551047862,-8027.63642451,0.00014,2]
[331585051,1720551047873,-359.24956584,0.00014,2]
[331585052,1720551047883,-1767.78642306,0.00014,2]
[331585053,1720551047900,-363.366,0.00014,2]
[331585054,1720551047912,-1450.42043495,0.00014,2]
[331585055,1720551047925,-1680.08069142,0.00014,2]
[331585056,1720551047935,-67401.41348932,0.00014,2]
[331585057,1720551047946,-1542.7683886,0.00014,2]
[331585058,1720551047959,-344.849717,0.00014,2]
[331585059,1720551047969,-289.78365456,0.00014,2]
[331585060,1720551047981,-430.6096317,0.00014,2]
[331585061,1720551047994,-611.967,0.00014,2]
[331585062,1720551048006,-623.04947874,0.00014,2]
[331585063,1720551048018,-1919.57705919,0.00014,2]
[331585064,1720551048030,-968.94986283,0.00014,2]
[331585065,1720551048041,-596.13999999,0.00014,2]
[331585066,1720551048053,-435.26432778,0.00014,2]
[331585067,1720551048065,-382.84633833,0.00014,2]
[331585069,1720551157443,1194.06824614,0.00011199,2]
[331585071,1720551192437,209.2685831,0.00011199,2]
[331585072,1720551208861,3075.09742481,0.00011199,2]
[331585073,1720551223066,3865.46569832,0.00011199,2]
[331585074,1720551227967,8736.7745725,0.00011199,2]
[331585075,1720551240515,6230.2551494,0.00011199,2]
[331585076,1720551301440,1265.01058332,0.00011199,2]
[331585077,1720551302356,1287.48512797,0.00011199,2]
[331585078,1720551304050,1931.81872646,0.00011199,2]
[331585079,1720551316846,1332.34826073,0.00011199,2]
[331585080,1720551319010,589.74,0.0001092,2]
[331585081,1720551343371,1904.31747652,0.00011199,2]
[331585082,1720551344684,756.75737183,0.00011199,2]
[331585083,1720551377701,800.08194752,0.00011199,2]
[331585084,1720551399785,179.97203314,0.00011199,2]
[331585085,1720551458017,193.69927417,0.00011199,2]
[331585086,1720551478891,388.42635038,0.00011199,2]
[331585087,1720551581606,1194.06824614,0.00011199,2]
[331585088,1720551594950,1194.06824614,0.00011199,2]
[331585089,1720551733377,544.76386976,0.00011199,2]
[331585090,1720551879637,453.09541711,0.00011199,2]
[331585091,1720551890234,577.2,0.00010836,2]
[331585092,1720551916674,155.1977572,0.00011199,2]
[331585093,1720551921091,1714.75837256,0.00011199,2]
[331585094,1720551957966,1194.06824614,0.00011199,2]
[331585095,1720552017392,1251.52373192,0.00011199,2]
[331585096,1720552184389,429.15592799,0.00011199,2]
[331585098,1720552232164,-267.23393513,0.00012302,2]
[331585106,1720552232886,-1.81454103,0.00012302,2]
[331585108,1720552232896,-206.12734629,0.00012314,2]
[331585110,1720552232906,-310.56,0.00012638,2]
[331585112,1720552232916,-250.0,0.00012738,2]
[331585114,1720552232926,-250.0,0.00012773,2]
[331585116,1720552232935,-1000.0,0.00012786,2]
[331585118,1720552232945,-176.33,0.00012787,2]
[331585120,1720552232955,-939.29185582,0.00012787,2]
[331585122,1720552232964,-953.40997791,0.00012813,2]
[331585123,1720552232981,-1572.82495648,0.00012813,2]
[331585124,1720552232992,-600.63506561,0.00012813,2]
[331585125,1720552233002,-291.8,0.00012828,2]
[331585126,1720552233012,-200.0,0.0001284,2]
[331585127,1720552233022,-150.99,0.0001284,2]
[331585128,1720552233032,-1170.77,0.00012856,2]
[331585129,1720552233042,-200.0,0.0001296,2]
[331585130,1720552233056,-169.64195072,0.0001309,2]
[331585131,1720552233069,-30.35804928,0.0001309,2]
[331585132,1720552233085,-577.2,0.000131,2]
[331585133,1720552233103,-300.0,0.00013178,2]
[331585134,1720552233119,-150.0,0.00013178,2]
[331585135,1720552233132,-150.0,0.00013178,2]
[331585136,1720552233142,-300.0,0.000132,2]
[331585137,1720552233152,-142.72830514,0.000132,2]
[331585139,1720552238207,-7.27169486,0.000132,2]
[331585140,1720552238218,-200.0,0.0001322,2]
[331585141,1720552238229,-150.0,0.000133,2]
[331585142,1720552238240,-150.0,0.000133,2]
[331585143,1720552238251,-200.0,0.0001335,2]
[331585144,1720552238266,-150.0,0.00013378,2]
[331585145,1720552238284,-4280.380383,0.00013411,2]
[331585146,1720552238306,-200.836651,0.00013411,2]
[331585147,1720552238323,-1070.095095,0.00013411,2]
[331585148,1720552238335,-164.19694,0.00013411,2]
[331585149,1720552238344,-161.59307,0.00013411,2]
[331585150,1720552238354,-170.979051,0.00013411,2]
[331585151,1720552238364,-518.0,0.00013448,2]
[331585152,1720552238375,-200.0,0.0001348,2]
[331585153,1720552238384,-613.59605607,0.00013574,2]
[331585154,1720552238394,-314.87532053,0.00013574,2]
[331585155,1720552238403,-507.14468725,0.00013579,2]
[331585156,1720552238420,-300.11965555,0.00013579,2]
[331585157,1720552238432,-1522.57839701,0.00013579,2]
[331585158,1720552238444,-1950.53764319,0.00013579,2]
[331585159,1720552238454,-1070.095095,0.00013579,2]
[331585160,1720552238463,-200.0,0.0001361,2]
[331585161,1720552238474,-385.19959325,0.00013721,2]
[331585162,1720552238484,-150.0,0.0001373,2]
[331585163,1720552238495,-150.0,0.00013731,2]
[331585164,1720552238505,-150.0,0.00013734,2]
[331585165,1720552238515,-200.0,0.0001374,2]
[331585166,1720552238526,-150.0,0.0001374,2]
[331585167,1720552238536,-150.0,0.00013743,2]
[331585168,1720552238546,-150.0,0.00013743,2]
[331585169,1720552238556,-2027.37754062,0.00013746,2]
[331585170,1720552238568,-2253.00284238,0.00013746,2]
[331585171,1720552238579,-1070.095095,0.00013746,2]
[331585172,1720552238588,-150.0,0.00013757,2]
[331585173,1720552238598,-150.0,0.00013768,2]
[331585174,1720552238608,-150.0,0.00013781,2]
[331585175,1720552238618,-150.0,0.00013781,2]
[331585176,1720552238628,-150.0,0.00013781,2]
[331585177,1720552238638,-150.0,0.00013785,2]
[331585178,1720552238648,-150.0,0.00013788,2]
[331585179,1720552238658,-115.2229843,0.0001379,2]
[331585181,1720552238671,-34.7770157,0.0001379,2]
[331585183,1720552238681,-150.0,0.00013791,2]
[331585185,1720552238692,-150.0,0.00013792,2]
[331585188,1720552238702,-150.0,0.000138,2]
[331585190,1720552238711,-87.52039055,0.00013807,2]
[331585191,1720552238731,-62.47960945,0.00013807,2]
[331585192,1720552238741,-150.0,0.0001381,2]
[331585193,1720552238751,-150.0,0.00013814,2]
[331585194,1720552238761,-150.0,0.00013819,2]
[331585195,1720552238771,-150.0,0.0001382,2]
[331585196,1720552238780,-150.0,0.00013821,2]
[331585197,1720552238791,-150.0,0.00013822,2]
[331585198,1720552238800,-150.0,0.00013833,2]
[331585199,1720552238810,-127.79599055,0.00013834,2]
[331585234,1720552240178,-22.20400945,0.00013834,2]
[331585235,1720552240188,-150.0,0.00013838,2]
[331585236,1720552240198,-250.28871625,0.0001384,2]
[331585237,1720552240207,-150.0,0.00013846,2]
[331585238,1720552240216,-150.0,0.00013847,2]
[331585239,1720552240225,-150.0,0.00013848,2]
[331585240,1720552240235,-150.0,0.00013848,2]
[331585241,1720552240244,-52.0572743,0.0001385,2]
[331585242,1720552240325,-97.9427257,0.0001385,2]
[331585243,1720552240334,-150.0,0.00013852,2]
[331585244,1720552240344,-150.0,0.00013853,2]
[331585245,1720552240354,-102.0572743,0.00013854,2]
[331585246,1720552240435,-47.9427257,0.00013854,2]
[331585247,1720552240445,-150.0,0.00013854,2]
[331585248,1720552240454,-150.0,0.00013858,2]
[331585249,1720552240464,-393.80306462,0.0001386,2]
[331585250,1720552240475,-1036.79535538,0.0001386,2]
[331585251,1720552240485,-150.64417,0.0001386,2]
[331585252,1720552240496,-150.0,0.00013861,2]
[331585253,1720552240506,-150.0,0.00013861,2]
[331585254,1720552240515,-150.0,0.00013862,2]
[331585255,1720552240526,-150.0,0.00013868,2]
[331585256,1720552240536,-150.0,0.00013869,2]
[331585257,1720552240545,-200.0,0.0001387,2]
[331585258,1720552240556,-1430.59843,0.0001387,2]
[331585259,1720552240566,-150.0,0.00013871,2]
[331585260,1720552240578,-150.0,0.00013873,2]
[331585261,1720552240587,-150.0,0.00013877,2]
[331585262,1720552240597,-150.0,0.00013878,2]
[331585263,1720552240608,-150.0,0.00013883,2]
[331585264,1720552240618,-150.0,0.00013883,2]
[331585265,1720552240628,-150.0,0.00013885,2]
[331585266,1720552240637,-150.0,0.00013887,2]
[331585267,1720552240647,-500.0,0.00013888,2]
[331585268,1720552240658,-150.0,0.00013888,2]
[331585269,1720552240669,-150.0,0.00013888,2]
[331585270,1720552240680,-150.0,0.00013891,2]
[331585271,1720552240691,-15.95718212,0.00013891,2]
[331585272,1720552240704,-134.04281788,0.00013891,2]
[331585273,1720552240714,-150.0,0.00013892,2]
[331585274,1720552240724,-150.0,0.00013893,2]
[331585275,1720552240741,-150.0,0.00013898,2]
[331585276,1720552240751,-315.97768332,0.00013899,2]
[331585277,1720552240760,-524.07577093,0.00013899,2]
[331585278,1720552240770,-213.90198021,0.000139,2]
[331585279,1720552240781,-486.24711979,0.000139,2]
[331585280,1720552240793,-13486.9478,0.000139,2]
[331585281,1720552240803,-461.36,0.000139,2]
[331585282,1720552240812,-481.0,0.000139,2]
[331585283,1720552240822,-1213.2548212,0.000139,2]
[331585284,1720552240834,-2500.0,0.000139,2]
[331585285,1720552240843,-2500.0,0.000139,2]
[331585286,1720552240853,-150.0,0.00013901,2]
[331585287,1720552240863,-150.0,0.00013902,2]
[331585288,1720552240873,-150.0,0.00013902,2]
[331585289,1720552240883,-150.0,0.00013908,2]
[331585290,1720552240892,-1430.59842,0.0001391,2]
[331585291,1720552240902,-150.0,0.00013911,2]
[331585292,1720552240911,-150.0,0.00013914,2]
[331585293,1720552240921,-4280.380383,0.00013914,2]
[331585294,1720552240930,-1070.095095,0.00013914,2]
[331585295,1720552240940,-150.0,0.00013916,2]
[331585296,1720552240950,-150.0,0.00013923,2]
[331585297,1720552240959,-150.0,0.00013923,2]
[331585298,1720552240969,-150.0,0.00013926,2]
[331585299,1720552240978,-150.0,0.00013927,2]
[331585300,1720552240988,-150.0,0.00013932,2]
[331585301,1720552240997,-150.0,0.00013935,2]
[331585302,1720552241006,-150.0,0.00013939,2]
[331585303,1720552241016,-150.0,0.00013952,2]
[331585304,1720552241026,-150.0,0.00013952,2]
[331585305,1720552241035,-150.0,0.00013953,2]
[331585306,1720552241045,-150.0,0.00013955,2]
[331585307,1720552241054,-150.0,0.00013955,2]
[331585308,1720552241064,-150.0,0.00013957,2]
[331585309,1720552241074,-150.0,0.00013958,2]
[331585310,1720552241085,-150.0,0.00013958,2]
[331585311,1720552241095,-150.0,0.00013964,2]
[331585312,1720552241105,-150.0,0.00013972,2]
[331585313,1720552241114,-150.0,0.00013973,2]
[331585314,1720552241124,-150.0,0.00013973,2]
[331585315,1720552241134,-150.0,0.00013975,2]
[331585316,1720552241144,-571.0,0.00013976,2]
[331585317,1720552241153,-150.0,0.00013978,2]
[331585318,1720552241163,-150.0,0.00013979,2]
[331585319,1720552241172,-150.0,0.00013981,2]
[331585320,1720552241182,-150.0,0.00013984,2]
[331585321,1720552241192,-150.0,0.00013989,2]
[331585322,1720552241201,-155.0,0.00013989,2]
[331585323,1720552241211,-200.0,0.0001399,2]
[331585324,1720552241220,-150.0,0.00013992,2]
[331585325,1720552241232,-150.0,0.00013998,2]
[331585326,1720552241241,-700.00349965,0.00013999,2]
[331585327,1720552241251,-300.0,0.00013999,2]
[331585328,1720552241260,-300.0,0.00013999,2]
[331585329,1720552241269,-300.0,0.00013999,2]
[331585330,1720552241278,-848.18525583,0.00014,2]
[331585331,1720552241290,-38831.90504504,0.00014,2]
[331585332,1720552241301,-13863.0434387,0.00014,2]
[331585333,1720552241310,-31933.76304949,0.00014,2]
[331585334,1720552241320,-16376.91241116,0.00014,2]
[331585396,1720552244388,-825.45,0.00014,2]
[331585397,1720552244399,-2804.45,0.00014,2]
[331585400,1720552247362,-3001.3,0.00014,2]
[331585401,1720552247374,-7467.64315569,0.00014,2]
[331585402,1720552247385,-724.0375,0.00014,2]
[331585403,1720552247395,-52587.54300546,0.00014,2]
[331585404,1720552485208,553.37,0.00011185,2]
[331585405,1720552519943,1194.06824614,0.00011199,2]
[331585406,1720552583396,299.85725962,0.00011199,2]
[331585407,1720552650598,155.60557615,0.00011199,2]
[331585408,1720552657309,155.0,0.00011199,2]
[331585409,1720552673978,251.81312797,0.00011199,2]
[331585410,1720552699403,299.85725962,0.00011199,2]
[331585411,1720552704209,155.0,0.00011199,2]
[331585412,1720552813866,899.00859541,0.00011199,2]
[331585414,1720552954953,1194.06824614,0.00011199,2]
[331585415,1720553101062,544.08,0.00011054,2]
[331585416,1720553147517,2023.26638176,0.00011199,2]
[331585417,1720553241516,521.01537596,0.00011199,2]
[331585418,1720553245232,14111.35848,0.00011199,2]
[331585420,1720553432357,-150.0,0.000126,2]
[331585421,1720553432367,-452.76,0.00012806,2]
[331585422,1720553432376,-86.63582423,0.0001289,2]
[331585426,1720553432873,-207.93417577,0.0001289,2]
[331585428,1720553432885,-152.8,0.00012951,2]
[331585431,1720553432895,-104.96741494,0.00012972,2]
[331585433,1720553432910,-175.95258506,0.00012972,2]
[331585435,1720553432919,-500.0,0.00012972,2]
[331585437,1720553432929,-250.0,0.00012974,2]
[331585439,1720553432940,-800.0,0.00012974,2]
[331585441,1720553432950,-200.0,0.000131,2]
[331585443,1720553432962,-1610.73526206,0.00013128,2]
[331585445,1720553432975,-764.60626949,0.00013128,2]
[331585446,1720553432987,-1557.44846845,0.00013128,2]
[331585447,1720553432997,-528.86,0.000132,2]
[331585448,1720553433007,-544.08,0.00013318,2]
[331585449,1720553433017,-151.29,0.000134,2]
[331585450,1720553433027,-283.60931573,0.00013452,2]
[331585479,1720553439934,-250.0,0.00012766,2]
[331585480,1720553439944,-16.68068427,0.00013452,2]
[331585481,1720553439954,-164.95,0.000135,2]
[331585482,1720553439964,-166.12431573,0.00013516,2]
[331585483,1720553439980,-351.94180941,0.00013516,2]
[331585484,1720553439990,-1068.17018491,0.00013516,2]
[331585485,1720553439999,-155.0,0.00013543,2]
[331585486,1720553440008,-30.86800568,0.00013573,2]
[331585491,1720553440594,-269.13199432,0.00013573,2]
[331585492,1720553440604,-297.27800568,0.00013574,2]
[331585493,1720553440616,-571.03870473,0.00013574,2]
[331585494,1720553440708,-1541.98589132,0.00013574,2]
[331585495,1720553440720,-350.36739827,0.00013574,2]
[331585496,1720553440730,-254.67875993,0.00013574,2]
[331585497,1720553440740,-1356.21246443,0.00013574,2]
[331585498,1720553440749,-424.55,0.00013678,2]
[331585499,1720553440759,-164.95,0.00013678,2]
[331585500,1720553440769,-176.85,0.00013782,2]
[331585501,1720553440778,-150.0,0.000138,2]
[331585502,1720553440788,-1383.636,0.0001385,2]
[331585503,1720553440798,-895.20781516,0.0001386,2]
[331585504,1720553440809,-150.64418,0.0001386,2]
[331585505,1720553440819,-150.64418,0.0001387,2]
[331585506,1720553440829,-351.88844729,0.00013899,2]
[331585507,1720553440839,-2438.0496,0.000139,2]
[331585508,1720553440849,-12355.51071806,0.000139,2]
[331585509,1720553440862,-6572.69418194,0.000139,2]
[331585510,1720553440872,-713.7506,0.000139,2]
[331585511,1720553440882,-488.8288,0.000139,2]
[331585512,1720553440893,-338.7468,0.000139,2]
[331585513,1720553440904,-7500.0,0.000139,2]
[331585514,1720553440915,-1000.0,0.000139,2]
[331585515,1720553440925,-1000.0,0.000139,2]
[331585516,1720553440936,-1000.0,0.000139,2]
[331585517,1720553440946,-1003.0,0.000139,2]
[331585518,1720553440956,-1000.0,0.000139,2]
[331585519,1720553440966,-1081.53884969,0.000139,2]
[331585520,1720553440976,-322.24176037,0.000139,2]
[331585521,1720553440987,-161.48,0.00013908,2]
[331585522,1720553440998,-150.64418,0.0001391,2]
[331585523,1720553441008,-150.0,0.00013927,2]
[331585524,1720553441018,-1652.9832711,0.0001399,2]
[331585525,1720553441028,-1652.9832711,0.0001399,2]
[331585526,1720553441038,-1652.9832711,0.0001399,2]
[331585527,1720553441048,-1652.9832711,0.0001399,2]
[331585528,1720553441059,-1652.9832711,0.0001399,2]
[331585529,1720553441068,-268.98,0.0001399,3]
[331585530,1720553441078,-300.0,0.00013999,2]
[331585531,1720553441089,-300.0,0.00013999,2]
[331585532,1720553441099,-560.0,0.00014,2]
[331585533,1720553441110,-32313.69041384,0.00014,2]
[331585534,1720553441123,-13328.39109983,0.00014,2]
[331585535,1720553441136,-4051.27967128,0.00014,2]
[331585566,1720553444411,-155.0,0.00013516,2]
[331585567,1720553444422,-197.16813191,0.000139,2]
[331585568,1720553446772,-150.0,0.00013729,2]
[331585569,1720553446782,-150.0,0.0001378,2]
[331585570,1720553446791,-150.0,0.00013781,2]
[331585571,1720553446801,-150.0,0.0001382,2]
[331585572,1720553446811,-150.0,0.00013863,2]
[331585573,1720553446820,-150.0,0.00013895,2]
[331585574,1720553446829,-1934.499,0.000139,2]
[331585596,1720554217186,530.55,0.0001104,2]
[331585604,1720554520560,5532.8324232,0.00011199,2]
[331585606,1720554549725,3393.16408193,0.00011199,2]
[331585607,1720554583273,1215.16040593,0.00011199,2]
[331585617,1720554631599,-659.47,0.0001251,2]
[331585618,1720554631609,-180.77,0.00012924,2]
[331585619,1720554631618,-640.0,0.00012941,2]
[331585620,1720554631627,-250.0,0.00012956,2]
[331585621,1720554631637,-51.41883105,0.00012999,2]
[331585622,1720554631653,-248.58116895,0.00012999,2]
[331585623,1720554631662,-300.0,0.00012999,2]
[331585624,1720554631671,-300.0,0.00012999,2]
[331585625,1720554631682,-905.99615104,0.00013,4]
[331585626,1720554631711,-254.68592052,0.00013,4]
[331585627,1720554631724,-62669.86836065,0.00013,4]
[331585628,1720554631734,-360.0,0.00013023,2]
[331585629,1720554631743,-530.55,0.00013304,2]
[331585630,1720554631752,-245.73294382,0.00013382,2]
[331585631,1720554631761,-150.0,0.00013397,2]
[331585632,1720554631771,-177.786747,0.00013411,2]
[331585633,1720554631780,-177.786747,0.00013635,2]
[331585634,1720554631790,-1334.85,0.00013699,5]
[331585635,1720554631799,-150.0,0.00013737,2]
[331585636,1720554631808,-150.0,0.00013769,2]
[331585637,1720554631817,-2677.699,0.000138,2]
[331585638,1720554631826,-150.0,0.00013849,2]
[331585639,1720554631836,-150.0,0.00013851,2]
[331585641,1720554631845,-177.786747,0.00013858,2]